bitfinex/quotes_SOLUSD_20260108
["timestamp","ask_amount","ask_price","bid_price","bid_amount"]
[1767864360926,14.2915437,134.66,134.62,0.72091964]
[1767864361630,7.4261102,134.66,134.62,0.72091964]
[1767864361842,7.96289084,134.66,134.62,0.72091964]
[1767864363949,38.4512701,134.67,134.63,6.83699989]
[1767864363950,7.42581011,134.67,134.63,6.83699989]
[1767864364746,7.96042821,134.67,134.63,0.65265394]
[1767864364952,7.96042821,134.67,134.63,6.83699989]
[1767864365546,0.68178539,134.66,134.62,7.42818126]
[1767864365738,0.53608978,134.65,134.62,6.18434595]
[1767864365940,0.53608978,134.65,134.61,8.08127232]
[1767864366142,0.53608978,134.65,134.63,6.18434595]
[1767864366441,0.68327193,134.67,134.64,6.83699989]
[1767864366642,0.68327193,134.67,134.65,6.18434595]
[1767864369535,7.42457097,134.69,134.66,0.65265394]
[1767864370245,7.42413496,134.7,134.66,0.65265394]
[1767864370751,8.10592035,134.7,134.66,0.65265394]
[1767864371348,12.06215232,134.7,134.66,0.65265394]
[1767864371859,0.53608978,134.69,134.66,0.65265394]
[1767864372155,4.6365604,134.68,134.63,7.42770448]
[1767864372359,4.6365604,134.68,134.64,0.65265394]
[1767864373358,8.10556117,134.68,134.64,0.65265394]
[1767864375460,8.10556117,134.68,134.65,0.65265394]
[1767864375761,7.42523274,134.68,134.65,0.59265396]
[1767864376359,8.01925082,134.68,134.65,0.59265396]
[1767864376672,8.10785776,134.69,134.65,0.59265396]
[1767864377466,8.10785776,134.69,134.65,0.53265402]
[1767864379772,8.10785776,134.69,134.64,11.38344118]
[1767864379773,0.68297339,134.67,134.64,0.65265394]
[1767864381055,30.62738749,134.68,134.64,0.65265394]
[1767864383562,0.65341802,134.67,134.62,4.60888591]
[1767864383768,0.65341802,134.67,134.63,0.65265394]
[1767864384083,8.07940842,134.67,134.63,0.65265394]
[1767864384981,12.03564039,134.67,134.63,0.65265394]
[1767864388477,11.38222237,134.67,134.63,0.65265394]
[1767864388680,3.95623197,134.66,134.63,0.65265394]
[1767864388981,4.60994555,134.65,134.61,0.65265394]
[1767864389369,4.60994555,134.65,134.62,0.65265394]
[1767864389575,3.95623197,134.65,134.62,0.65265394]
[1767864390784,11.38309116,134.65,134.62,0.65265394]
[1767864394180,12.06586804,134.66,134.62,0.65265394]
[1767864394379,11.38259611,134.66,134.62,0.65265394]
[1767864394992,12.03577935,134.66,134.63,0.70313347]
[1767864395183,3.95623197,134.64,134.61,0.70313347]
[1767864395379,4.60971543,134.64,134.61,0.70313347]
[1767864396386,3.95623197,134.63,134.61,0.70313347]
[1767864396967,12.03695576,134.64,134.61,0.70313347]
[1767864400468,11.3834723,134.64,134.61,0.70313347]
[1767864400870,3.95623197,134.63,134.61,0.70313347]
[1767864401264,3.95623197,134.63,134.59,7.42987567]
[1767864401591,3.95623197,134.63,134.6,0.70313347]
[1767864401969,11.3834723,134.64,134.6,0.70313347]
[1767864402377,3.95623197,134.63,134.6,0.70313347]
[1767864402577,3.95623197,134.63,134.61,0.70313347]
[1767864404894,7.42724033,134.64,134.61,0.70313347]
[1767864405194,11.3834723,134.64,134.61,0.70313347]
[1767864406293,11.3534723,134.64,134.61,0.70313347]
[1767864407890,12.00665554,134.64,134.61,0.70313347]
[1767864408090,3.95623197,134.63,134.61,0.70313347]
[1767864409112,4.63974105,134.62,134.57,7.4308479]
[1767864409420,4.63974105,134.61,134.57,7.4308479]
[1767864409703,4.63974105,134.61,134.55,13.56]
[1767864409704,0.68350908,134.6,134.55,13.56]
[1767864409872,4.63974105,134.6,134.55,17.51623197]
[1767864411008,4.63974105,134.6,134.57,0.70313347]
[1767864412098,0.68350908,134.6,134.57,0.70313347]
[1767864412281,4.63974105,134.6,134.57,0.70313347]
[1767864413904,0.68350908,134.62,134.58,0.70313347]
[1767864414098,0.68350908,134.61,134.57,12.09037569]
[1767864414305,4.63974105,134.61,134.57,8.13414372]
[1767864416101,0.68350908,134.61,134.57,12.09037569]
[1767864416410,4.63974105,134.62,134.58,0.70313347]
[1767864416588,0.68350908,134.62,134.58,4.65936544]
[1767864416793,0.28432314,134.66,134.58,4.65936544]
[1767864416794,8.1105937,134.65,134.61,0.70313347]
[1767864416994,8.1105937,134.65,134.59,4.65936544]
[1767864416995,0.68350908,134.63,134.59,4.65936544]
[1767864417604,7.42708462,134.65,134.56,0.70313347]
[1767864417811,3.95623197,134.6,134.57,0.70313347]
[1767864417998,4.63974105,134.61,134.57,0.70313347]
[1767864418417,4.63974105,134.61,134.57,8.13402391]
[1767864418618,0.68350908,134.61,134.58,0.70313347]
[1767864418799,12.06853501,134.62,134.58,0.70313347]
[1767864419213,8.11230304,134.62,134.59,4.65936544]
[1767864419518,8.11230304,134.62,134.59,0.70313347]
[1767864419693,0.68350908,134.65,134.62,0.70313347]
[1767864419895,5.61696323,134.65,134.62,3.95623197]
[1767864420106,0.68350908,134.64,134.62,3.89670673]
[1767864420308,0.68350908,134.64,134.57,32.1376919]
[1767864420622,0.68350908,134.64,134.6,3.95623197]
[1767864421418,8.11091482,134.64,134.58,7.43052459]
[1767864421629,0.65917589,134.63,134.58,7.43052459]
[1767864421796,0.65917589,134.63,134.59,4.65936544]
[1767864422213,4.61540786,134.63,134.59,4.65936544]
[1767864422520,0.66306841,134.61,134.58,0.68522108]
[1767864422701,4.61930038,134.62,134.58,0.68522108]
[1767864422896,0.66306841,134.61,134.58,3.95623197]
[1767864424226,8.09196366,134.61,134.58,3.95623197]
[1767864425240,8.10883502,134.6,134.57,0.68522108]
[1767864425409,0.66323184,134.59,134.56,3.95623197]
[1767864426512,0.66323184,134.59,134.56,4.67098128]
[1767864427735,8.12890797,134.61,134.58,0.71474931]
[1767864427926,8.12890797,134.61,134.58,4.67098128]
[1767864428233,7.42906782,134.61,134.58,4.67098128]
[1767864428426,7.42906782,134.61,134.58,0.71474931]
[1767864428933,8.07207595,134.61,134.58,0.71474931]
[1767864429134,8.07207595,134.61,134.57,4.67098128]
[1767864429339,0.64357077,134.59,134.56,4.67098128]
[1767864429511,0.69984015,134.6,134.56,4.67098128]
[1767864429711,0.69984015,134.6,134.56,0.71474931]
[1767864429912,0.69984015,134.6,134.56,4.67098128]
[1767864430112,8.12955137,134.6,134.56,4.67098128]
[1767864430430,4.5992401,134.59,134.56,0.71474931]
[1767864430621,4.5992401,134.59,134.55,4.67098128]
[1767864430817,0.69927183,134.58,134.54,4.67098128]
[1767864431235,0.69984015,134.59,134.55,4.67098128]
[1767864431533,24.94594319,134.6,134.56,0.71474931]
[1767864431731,24.94594319,134.6,134.56,3.95623197]
[1767864431928,0.69984015,134.59,134.56,3.95623197]
[1767864432316,8.13014321,134.59,134.55,4.67098128]
[1767864432516,8.13014321,134.59,134.55,6.90638304]
[1767864434916,21.68946846,134.6,134.56,6.90638304]
[1767864435237,0.64300813,134.59,134.56,6.90638304]
[1767864435618,0.64300813,134.59,134.56,0.71474931]
[1767864437530,8.07317186,134.59,134.55,6.90638304]
[1767864438345,0.69927183,134.58,134.55,6.90638304]
[1767864439038,0.69927183,134.58,134.55,0.71474931]
[1767864439245,0.69927183,134.58,134.55,6.90638304]
[1767864439441,8.13028185,134.58,134.55,6.90638304]
[1767864439625,0.64357077,134.57,134.54,6.90638304]
[1767864439830,0.64357077,134.57,134.54,0.71474931]
[1767864440025,0.64357077,134.57,134.54,6.90638304]
[1767864441648,8.13085017,134.58,134.55,0.71474931]
[1767864441955,0.64300813,134.57,134.54,6.19163373]
[1767864442144,0.61300813,134.57,134.54,6.90638304]
[1767864442345,0.61300813,134.57,134.54,6.19163373]
[1767864443049,0.61300813,134.57,134.54,6.90638304]
[1767864444251,8.04427185,134.57,134.53,6.90638304]
[1767864444435,0.69927183,134.56,134.53,6.90638304]
[1767864445639,8.13095523,134.56,134.53,6.90638304]
[1767864445841,0.61387077,134.55,134.52,6.19163373]
[1767864446035,0.61387077,134.55,134.51,28.1005577]
[1767864446355,0.61387077,134.55,134.51,21.90892397]
[1767864446543,0.61387077,134.55,134.52,6.90638304]
[1767864447840,0.61387077,134.55,134.52,0.71474931]
[1767864448045,8.0460969,134.55,134.52,0.71474931]
[1767864448245,8.0460969,134.55,134.52,6.90638304]
[1767864448445,0.61387077,134.55,134.52,6.90638304]
[1767864449640,8.13173581,134.56,134.52,14.3401627]
[1767864450050,0.69984015,134.57,134.54,0.71474931]
[1767864450246,18.57591645,134.59,134.55,6.90638304]
[1767864450247,0.69984015,134.58,134.55,6.90638304]
[1767864450451,13.56,134.59,134.56,6.90638304]
[1767864450652,0.69984015,134.61,134.58,6.19163373]
[1767864450837,0.69984015,134.61,134.59,6.19163373]
[1767864451157,0.69984015,134.61,134.58,6.90638304]
[1767864454670,7.42859349,134.62,134.59,0.69630435]
[1767864454874,8.0572777,134.62,134.59,0.69630435]
[1767864455064,8.0572777,134.62,134.58,6.88793808]
[1767864455964,0.6292349,134.6,134.57,6.88793808]
[1767864456164,0.6292349,134.6,134.56,0.69630435]
[1767864456346,0.62977463,134.58,134.54,0.69630435]
[1767864456548,0.62977463,134.58,134.54,6.88793808]
[1767864456748,0.62977463,134.58,134.54,14.32045575]
[1767864456981,0.62977463,134.58,134.55,0.69630435]
[1767864457465,6.87594249,134.59,134.55,0.69630435]
[1767864459079,8.0592088,134.58,134.55,0.69630435]
[1767864459272,6.87538624,134.57,134.53,0.69630435]
[1767864460271,0.6292349,134.56,134.53,0.69630435]
[1767864460771,6.87594249,134.57,134.53,0.69630435]
[1767864461279,8.06031322,134.56,134.53,0.69630435]
[1767864464066,7.401629,134.56,134.53,0.69630435]
[1767864468580,8.08538151,134.56,134.53,0.69630435]
[1767864470581,8.11550385,134.56,134.53,0.69630435]
[1767864470768,14.30713758,134.56,134.53,0.69630435]
[1767864472183,8.11550385,134.56,134.53,0.69630435]
[1767864473892,7.43175134,134.56,134.53,0.69630435]
[1767864475681,8.11509257,134.58,134.54,0.69630435]
[1767864475873,14.30612648,134.59,134.55,0.69630435]
[1767864476069,4.93153712,134.58,134.55,0.69630435]
[1767864476961,12.36212498,134.58,134.55,0.69630435]
[1767864477161,7.43058786,134.58,134.55,0.69630435]
[1767864479681,14.2509058,134.58,134.54,0.69630435]
[1767864479880,0.68375251,134.57,134.54,0.69630435]
[1767864480087,6.87538624,134.57,134.54,0.69630435]
[1767864480385,0.68375251,134.57,134.54,0.69630435]
[1767864480683,8.11489662,134.58,134.55,0.69630435]
[1767864481188,0.62868421,134.57,134.54,0.69630435]
[1767864481688,0.68375251,134.56,134.53,0.69630435]
[1767864482188,14.34365361,134.57,134.53,0.69630435]
[1767864482385,0.59276713,134.56,134.53,0.69630435]
[1767864485364,8.0245585,134.56,134.53,0.69630435]
[1767864485584,7.43179137,134.56,134.53,0.69630435]
[1767864486876,0.68294674,134.55,134.52,6.19163373]
[1767864487076,0.68294674,134.55,134.51,7.08565957]
[1767864487376,14.25292322,134.56,134.52,0.69402584]
[1767864487693,0.68294674,134.55,134.52,0.69402584]
[1767864489593,8.11514659,134.55,134.52,0.69402584]
[1767864490671,0.63003261,134.54,134.51,0.89402584]
[1767864491085,0.63003261,134.54,134.51,0.2]
[1767864491293,6.87405133,134.53,134.51,0.2]
[1767864491683,6.87405133,134.53,134.5,0.245]
[1767864491684,0.63055646,134.52,134.5,0.245]
[1767864493279,0.48389899,134.51,134.5,0.245]
[1767864493486,0.48389899,134.51,134.48,0.69402584]
[1767864493981,12.08416694,134.52,134.48,0.69402584]
[1767864494776,8.11738215,134.52,134.48,0.69402584]
[1767864494981,12.08416694,134.52,134.48,0.69402584]
[1767864495382,8.11738215,134.52,134.48,0.69402584]
[1767864495879,8.11738215,134.52,134.48,8.1300335]
[1767864496089,0.68348663,134.52,134.48,12.09681829]
[1767864496402,8.11732842,134.52,134.49,0.69402584]
[1767864499198,0.18929788,134.51,134.48,0.69402584]
[1767864499590,0.68348663,134.52,134.48,12.09652717]
[1767864501497,8.11736683,134.52,134.48,8.12974238]
[1767864501806,8.11736683,134.52,134.48,12.09652717]
[1767864502404,8.11736683,134.52,134.48,8.12974238]
[1767864502711,8.11736683,134.52,134.49,0.69402584]
[1767864503603,0.18929788,134.51,134.48,0.69402584]
[1767864503809,4.65027142,134.52,134.49,0.69402584]
[1767864504005,0.68348663,134.52,134.49,0.69402584]
[1767864507011,8.11742992,134.52,134.49,0.69402584]
[1767864507191,12.08421471,134.52,134.49,0.69402584]
[1767864509002,4.65027142,134.52,134.49,0.69402584]
[1767864509502,12.08418731,134.52,134.49,0.69402584]
[1767864510220,8.11740252,134.52,134.49,0.69402584]
[1767864510409,8.11644438,134.54,134.5,0.69402584]
[1767864510612,0.68348663,134.55,134.52,0.69402584]
[1767864512520,4.62300267,134.58,134.54,0.67020132]
[1767864512712,4.62300267,134.58,134.54,4.57698616]
[1767864512713,14.23621788,134.58,134.54,4.57698616]
[1767864513015,0.27569389,134.57,134.54,0.61020137]
[1767864514015,4.24247868,134.57,134.54,0.61020137]
[1767864514202,4.24247868,134.57,134.52,3.96678479]
[1767864514717,4.24247868,134.57,134.53,0.67020132]
[1767864515019,11.67388099,134.57,134.53,0.67020132]
[1767864515917,7.7070962,134.57,134.53,0.67020132]
[1767864516116,11.67388099,134.57,134.53,0.67020132]
[1767864518614,0.65241264,134.56,134.53,0.67020132]
[1767864519317,0.65241264,134.56,134.53,4.63698611]
[1767864519716,7.43140231,134.57,134.54,0.67020132]
[1767864519907,10.54568032,134.61,134.53,3.96678479]
[1767864519908,7.42908606,134.61,134.57,0.67020132]
[1767864520107,11.39587085,134.61,134.57,0.67020132]
[1767864520313,12.05208873,134.61,134.57,0.67020132]
[1767864521029,8.08530394,134.61,134.57,0.67020132]
[1767864521326,3.96678479,134.6,134.57,0.67020132]
[1767864522222,0.65241264,134.59,134.56,0.67020132]
[1767864522521,4.61919743,134.59,134.56,0.67020132]
[1767864523019,3.96678479,134.58,134.55,0.67020132]
[1767864523222,11.39740174,134.58,134.55,0.67020132]
[1767864523402,11.67686282,134.58,134.54,0.67020132]
[1767864523605,4.61546791,134.57,134.53,0.67020132]
[1767864523806,0.2831533,134.56,134.52,8.10382272]
[1767864524001,4.24993809,134.56,134.52,8.10382272]
[1767864524225,4.24993809,134.56,134.53,0.67020132]
[1767864524425,3.96678479,134.56,134.53,0.67020132]
[1767864525108,11.39854932,134.56,134.53,0.67020132]
[1767864526214,3.96678479,134.56,134.53,0.67020132]
[1767864526719,7.70703193,134.57,134.53,0.67020132]
[1767864526720,11.67381672,134.57,134.53,0.67020132]
[1767864528915,11.39812283,134.57,134.53,0.67020132]
[1767864529238,7.43133804,134.57,134.53,0.67020132]
[1767864529421,11.39812283,134.57,134.53,0.67020132]
[1767864530334,11.67381672,134.57,134.53,0.67020132]
[1767864530636,7.70703193,134.57,134.53,4.63698611]
[1767864531340,7.43133804,134.57,134.54,0.67020132]
[1767864532222,7.70703193,134.57,134.54,0.67020132]
[1767864533434,7.43133804,134.57,134.54,0.67020132]
[1767864536247,4.61546791,134.55,134.51,0.67020132]
[1767864536418,18.20300267,134.56,134.52,0.67020132]
[1767864536845,14.23621788,134.56,134.53,0.61020132]
[1767864537139,0.65621788,134.56,134.53,0.61020132]
[1767864537315,21.01133804,134.57,134.53,3.96678479]
[1767864537514,21.01133804,134.57,134.53,11.40004896]
[1767864537738,21.01133804,134.57,134.53,3.96678479]
[1767864537935,21.34643193,134.57,134.53,3.96678479]
[1767864538148,25.31321672,134.57,134.52,11.40043288]
[1767864538942,25.31321672,134.57,134.53,0.67020132]
[1767864541043,21.34643193,134.57,134.53,4.63698611]
[1767864541532,21.34643193,134.57,134.54,0.67020132]
[1767864541733,21.34643193,134.57,134.54,0.61020132]
[1767864542850,24.97811352,134.57,134.52,3.96678479]
[1767864543050,21.01132873,134.57,134.52,3.96678479]
[1767864543649,25.34442845,134.57,134.53,0.70144233]
[1767864547251,0.96513787,134.6,134.55,0.70144233]
[1767864547452,26.61789945,134.6,134.56,0.70144233]
[1767864547647,4.92739213,134.59,134.56,4.66822712]
[1767864547950,5.29753514,134.59,134.56,0.70144233]
[1767864549761,9.26431993,134.59,134.56,0.70144233]
[1767864549965,4.6444928,134.58,134.55,0.70144233]
[1767864550134,4.6444928,134.58,134.51,18.58515796]
[1767864550135,4.34000345,134.57,134.54,0.70144233]
[1767864551449,11.77160259,134.57,134.54,0.70144233]
[1767864552747,13.9987493,134.57,134.54,0.70144233]
[1767864553652,7.43090265,134.58,134.54,0.70144233]
[1767864553946,7.43090265,134.58,134.55,0.70144233]
[1767864554753,6.87163951,134.57,134.54,0.70144233]
[1767864555430,8.11171738,134.58,134.54,0.70144233]
[1767864555627,4.93673573,134.57,134.54,0.70144233]
[1767864556358,6.1939315,134.57,134.54,0.70144233]
[1767864556580,14.30564888,134.58,134.54,0.70144233]
[1767864556735,4.93539109,134.57,134.54,0.70144233]
[1767864557557,4.93539109,134.57,134.53,13.62705467]
[1767864558444,4.93539109,134.57,134.53,13.62693426]
[1767864558643,0.68081473,134.58,134.54,13.62662914]
[1767864558845,5.61740449,134.58,134.54,13.62662914]
[1767864559562,5.61740449,134.58,134.55,0.70144233]
[1767864562663,4.93658976,134.58,134.55,0.70144233]
[1767864563766,12.36715128,134.58,134.55,0.70144233]
[1767864563944,7.43056152,134.58,134.55,0.70144233]
[1767864564265,6.58449583,134.57,134.53,0.70144233]
[1767864564764,14.01587738,134.57,134.53,0.70144233]
[1767864566470,19.24500588,134.56,134.53,0.70144233]
[1767864566671,14.30640341,134.56,134.53,0.70144233]
[1767864567065,6.87474623,134.56,134.53,0.70144233]
[1767864571291,0.68081473,134.55,134.49,0.70144233]
[1767864571506,6.1939315,134.52,134.49,8.13663319]
[1767864571789,0.68081473,134.52,134.49,0.70144233]
[1767864572182,0.68081473,134.52,134.48,13.62975153]
[1767864572389,0.68081473,134.52,134.48,8.15834413]
[1767864572881,6.1939315,134.51,134.48,0.7225241]
[1767864573885,0.68081473,134.52,134.48,8.15855174]
[1767864574059,11.80885767,134.52,134.48,8.15855174]
[1767864574264,6.87474623,134.52,134.48,8.15855174]
[1767864574583,0.70468253,134.51,134.48,8.15855174]
[1767864575570,6.89861403,134.52,134.49,0.7225241]
[1767864577589,0.70468253,134.52,134.49,0.7225241]
[1767864580874,8.13852364,134.52,134.49,0.7225241]
[1767864581193,0.70468253,134.52,134.49,0.7225241]
[1767864581992,7.43439149,134.51,134.47,0.7225241]
[1767864582181,0.67468254,134.51,134.48,0.7225241]
[1767864582381,13.62721775,134.53,134.49,0.7225241]
[1767864584197,0.70468253,134.52,134.49,0.7225241]
[1767864586191,14.33190028,134.53,134.49,0.7225241]
[1767864586686,0.70468253,134.52,134.48,6.9164556]
[1767864586886,0.70468253,134.52,134.49,0.7225241]
[1767864587686,0.70468253,134.52,134.48,8.15830056]
[1767864587687,6.89861403,134.52,134.48,8.15830056]
[1767864587890,0.70468253,134.51,134.47,8.15896371]
[1767864588088,0.70468253,134.51,134.48,0.7225241]
[1767864588511,14.33275689,134.52,134.48,0.7225241]
[1767864588794,8.13882539,134.52,134.49,0.7225241]
[1767864589007,0.70468253,134.52,134.49,0.7225241]
[1767864589494,8.13854147,134.52,134.49,0.7225241]
[1767864589996,14.33247297,134.52,134.49,0.7225241]
[1767864590197,14.33247297,134.52,134.48,0.7225241]
[1767864590577,14.33247297,134.52,134.49,0.7225241]
[1767864592299,14.33247297,134.52,134.46,0.7225241]
[1767864592300,0.70468253,134.49,134.46,0.7225241]
[1767864592486,0.70468253,134.48,134.44,0.7225241]
[1767864592679,0.67468254,134.48,134.44,8.16047478]
[1767864592876,0.28432314,134.51,134.44,8.16047478]
[1767864593080,6.1939315,134.49,134.44,14.35440628]
[1767864593281,6.1939315,134.51,134.46,6.1939315]
[1767864593580,39.59845602,134.52,134.46,13.63078763]
[1767864593786,6.1939315,134.51,134.46,13.63078763]
[1767864594398,6.1939315,134.5,134.46,0.7225241]
[1767864594704,6.89861403,134.5,134.46,0.7225241]
[1767864596806,14.33395273,134.5,134.46,0.7225241]
[1767864597106,0.70468253,134.49,134.46,0.7225241]
[1767864597600,0.70468253,134.48,134.45,0.7225241]
[1767864597794,0.70468253,134.49,134.46,0.7225241]
[1767864598001,14.33395273,134.5,134.46,0.7225241]
[1767864598385,8.14002123,134.5,134.46,0.7225241]
[1767864599504,7.43465426,134.51,134.47,0.7225241]
[1767864599683,0.70468253,134.51,134.47,0.7225241]
[1767864600193,0.70468253,134.5,134.47,0.7225241]
[1767864600796,0.70468253,134.5,134.47,8.15906068]
[1767864601291,0.70468253,134.51,134.47,8.15906068]
[1767864601487,8.1382432,134.53,134.5,0.7225241]
[1767864601688,4.56557021,134.57,134.53,0.7225241]
[1767864601891,12.34857878,134.56,134.53,0.7225241]
[1767864602093,8.13668847,134.56,134.53,0.7225241]
[1767864602307,8.13668847,134.56,134.52,0.6739963]
[1767864602508,0.72238619,134.55,134.52,0.6739963]
[1767864602889,6.91631769,134.54,134.5,0.6739963]
[1767864604205,0.72238619,134.54,134.5,0.6739963]
[1767864604693,6.91631769,134.54,134.5,0.6739963]
[1767864604891,6.87504425,134.53,134.49,0.68298945]
[1767864607197,8.11443141,134.53,134.49,0.68298945]
[1767864607397,14.30836291,134.53,134.49,0.68298945]
[1767864607611,0.68111275,134.52,134.49,0.68298945]
[1767864607816,6.87504425,134.52,134.49,0.68298945]
[1767864608195,0.68111275,134.51,134.47,8.1193158]
[1767864608416,6.87504425,134.51,134.47,8.1193158]
[1767864609904,0.68111275,134.5,134.47,8.1193158]
[1767864610112,0.68111275,134.5,134.46,8.12007348]
[1767864610416,6.87504425,134.5,134.46,8.12007348]
[1767864610595,0.68111275,134.5,134.46,8.12007348]
[1767864611318,13.6283574,134.51,134.46,8.12007348]
[1767864611319,12.29687056,134.51,134.47,0.68298945]
[1767864612933,18.58142737,134.55,134.48,6.87692095]
[1767864613113,24.70738739,134.54,134.49,0.68298945]
[1767864613416,0.68111275,134.53,134.49,0.68298945]
[1767864613622,20.45504425,134.54,134.5,0.68298945]
[1767864613800,27.887778,134.54,134.5,0.68298945]
[1767864614117,4.93674279,134.53,134.5,0.68298945]
[1767864619233,18.22718588,134.56,134.52,0.68298945]
[1767864619406,4.64718588,134.56,134.52,0.68298945]
[1767864619807,0.68111275,134.55,134.52,0.68298945]
[1767864620206,0.68111275,134.55,134.51,11.9353321]
[1767864620612,0.68111275,134.55,134.51,7.96925897]
[1767864621819,0.68111275,134.55,134.52,0.53497384]
[1767864622020,12.07918802,134.56,134.52,0.53497384]
[1767864622208,0.68111275,134.55,134.52,0.53497384]
[1767864623835,0.68111275,134.55,134.51,11.9353321]
[1767864624610,0.68111275,134.55,134.51,7.96925897]
[1767864624810,0.68111275,134.55,134.52,0.53497384]
[1767864625112,12.07918802,134.56,134.52,7.96877036]
[1767864625310,8.11311489,134.56,134.52,7.96877036]
[1767864625538,12.07918802,134.56,134.52,7.96877036]
[1767864625737,12.07918802,134.56,134.53,0.53497384]
[1767864626033,12.07918802,134.56,134.52,7.96877036]
[1767864626427,8.11311489,134.56,134.52,7.96877036]
[1767864626631,12.07918802,134.56,134.52,7.96877036]
[1767864626829,0.68111275,134.55,134.52,7.96877036]
[1767864630018,0.68111275,134.55,134.52,7.43379652]
[1767864631207,0.68111275,134.55,134.52,7.96877036]
[1767864631613,0.68111275,134.56,134.53,0.53497384]
[1767864631822,13.58,134.58,134.55,0.68298945]
[1767864632119,11.39555154,134.6,134.55,0.68298945]
[1767864632435,11.39555154,134.6,134.53,7.43295408]
[1767864632436,3.96607313,134.57,134.53,7.43295408]
[1767864633429,3.96607313,134.57,134.53,8.12266086]
[1767864633636,7.4301166,134.59,134.54,7.43259207]
[1767864633814,0.68046933,134.57,134.54,7.43259207]
[1767864636015,0.68046933,134.57,134.53,8.12273595]
[1767864637158,0.68046933,134.57,134.53,12.08880908]
[1767864638048,0.68046933,134.57,134.51,0.68970678]
[1767864638226,0.68046933,134.54,134.51,7.43409913]
[1767864638547,0.68046933,134.54,134.51,8.12380591]
[1767864638727,0.68046933,134.54,134.51,8.12399439]
[1767864639628,0.68046933,134.52,134.48,0.68970678]
[1767864639835,0.68046933,134.55,134.5,0.68970678]
[1767864640023,0.68046933,134.54,134.5,0.68970678]
[1767864640940,0.68046933,134.54,134.5,8.12433488]
[1767864641141,0.68046933,134.52,134.47,62.58970678]
[1767864641335,0.68046933,134.52,134.41,127.33]
[1767864641336,0.68046933,134.49,134.44,61.9]
[1767864641537,0.68046933,134.48,134.45,0.68970678]
[1767864641724,0.68046933,134.49,134.45,4.65577991]
[1767864641925,0.68046933,134.5,134.46,4.65577991]
[1767864642137,0.68046933,134.5,134.46,0.68970678]
[1767864642332,0.68046933,134.5,134.47,0.68970678]
[1767864643134,0.68046933,134.5,134.46,12.09268145]
[1767864643335,0.68046933,134.5,134.46,8.12660832]
[1767864643548,0.68046933,134.5,134.46,12.09268145]
[1767864643941,0.68046933,134.5,134.47,8.12623756]
[1767864644350,0.68046933,134.52,134.48,4.65577991]
[1767864644544,0.68046933,134.52,134.48,0.62970678]
[1767864645053,0.68046933,134.52,134.48,3.96607313]
[1767864645229,0.68046933,134.52,134.48,11.40195398]
[1767864645426,0.68046933,134.5,134.47,7.43647636]
[1767864646543,0.68046933,134.5,134.47,8.12618314]
[1767864648360,0.68046933,134.51,134.47,8.12618314]
[1767864649056,4.64654246,134.52,134.48,0.68970678]
[1767864649550,0.68046933,134.51,134.48,0.68970678]
[1767864650864,0.68046933,134.51,134.47,12.09225627]
[1767864651045,0.68046933,134.51,134.47,8.12618314]
[1767864654465,0.68046933,134.51,134.48,0.68970678]
[1767864654751,0.68046933,134.52,134.48,0.68970678]
[1767864655137,4.64654246,134.52,134.48,0.68970678]
[1767864655858,4.64654246,134.52,134.48,8.12539584]
[1767864656754,7.43360766,134.53,134.49,0.68970678]
[1767864656964,4.64654246,134.53,134.49,0.62970678]
[1767864657255,0.68046933,134.55,134.5,3.96607313]
[1767864657451,5.6036121,134.57,134.52,3.96607313]
[1767864657651,0.68046933,134.57,134.52,3.96607313]
[1767864657860,0.68046933,134.57,134.53,7.43328625]
[1767864658865,0.68046933,134.57,134.53,8.12299303]
[1767864659689,0.68046933,134.56,134.53,8.12299303]
[1767864660163,4.64654246,134.56,134.52,8.12340658]
[1767864660665,0.68046933,134.55,134.52,8.12340658]
[1767864661564,4.64654246,134.56,134.52,8.12340658]
[1767864661857,0.68046933,134.55,134.52,0.68970678]
[1767864662245,0.68046933,134.55,134.51,8.14610472]
[1767864662451,0.70983742,134.54,134.51,0.71190344]
[1767864662664,0.70983742,134.54,134.5,8.14663102]
[1767864662958,4.67591055,134.54,134.5,8.14663102]
[1767864663359,4.6815596,134.55,134.52,0.71561429]
[1767864663576,0.71548647,134.55,134.52,0.71561429]
[1767864664868,0.71548647,134.57,134.53,0.71561429]
[1767864665180,4.6815596,134.57,134.53,0.71561429]
[1767864665562,3.96607313,134.56,134.53,0.71561429]
[1767864665950,4.6815596,134.56,134.53,0.71561429]
[1767864667078,0.71548647,134.56,134.53,8.14888776]
[1767864667253,4.6815596,134.56,134.53,8.14888776]
[1767864668063,0.71548647,134.56,134.53,8.14888776]
[1767864668254,4.6815596,134.56,134.53,8.14888776]
[1767864668565,4.6815596,134.56,134.53,0.71561429]
[1767864669954,4.6815596,134.54,134.5,0.71561429]
[1767864670159,4.6815596,134.54,134.5,8.1503421]
[1767864670492,0.71548647,134.52,134.48,14.29561429]
[1767864670676,4.6815596,134.52,134.48,21.73134546]
[1767864672487,0.71548647,134.52,134.48,21.73134546]
[1767864673092,3.96607313,134.53,134.49,0.71561429]
[1767864673296,3.96607313,134.53,134.48,8.15162801]
[1767864673588,3.96607313,134.53,134.49,0.71561429]
[1767864674469,6.197546,134.53,134.49,0.71561429]
[1767864674675,6.197546,134.54,134.49,14.34863046]